[Event "21st Sants Open 2019"]
[Site "Cotxeres de Sants"]
[Date "2019.08.24"]
[Round "2.2"]
[White "Vaibhav, Suri"]
[Black "Samani, Yamac"]
[Result "1-0"]
[ECO "C72"]
[WhiteElo "2591"]
[BlackElo "2285"]
[Annotator "ChessBase"]
[PlyCount "59"]
[EventDate "2019.08.22"]
[EventType "swiss"]
[EventCountry "ESP"]
[SourceTitle "playchess.com"]
[Source "ChessBase"]
[SourceQuality "1"]
[TimeControl "40/5400+30:1800+30"]

1. e4 {[%emt 0:01:04]} e5 {[%emt 0:00:00]} 2. Nf3 {[%emt 0:00:05]} Nc6 {[%emt 0:00:00]} 3. Bb5 {[%emt 0:00:05]} a6 {[%emt 0:00:16]} 4. Ba4 {[%emt 0:00:07]} d6 {[%emt 0:00:14]} 5. O-O {[%emt 0:00:23]} Bd7 {[%emt 0:00:08]} 6. c3 {[%emt 0:00:19]} g6 {[%emt 0:00:31]} 7. d4 {[%emt 0:00:10]} Bg7 {[%emt 0:00:29]} 8. Bg5 {[%emt 0:00:28]} Nf6 {[%emt 0:05:51]} 9. Bxc6 {[%emt 0:01:22]} Bxc6 {[%emt 0:00:32]} 10. dxe5 {[%emt 0:00:07]} dxe5 {[%emt 0:00:16]} 11. Nxe5 {[%emt 0:00:17]} Qxd1 {[%emt 0:04:28]} 12. Rxd1 {[%emt 0:00:03]} Nxe4 {[%emt 0:03:44]} 13. Bf4 {[%emt 0:12:34]} O-O {[%emt 0:07:06]} 14. Nxc6 {[%emt 0:06:42]} bxc6 {[%emt 0:00:48]} 15. Bxc7 {[%emt 0:15:28]} Ra7 {[%emt 0:02:27]} 16. Bf4 {[%emt 0:00:38]} Rb7 {[%emt 0:01:04]} 17. Nd2 {[%emt 0:01:37]} Nxd2 {[%emt 0:08:24]} 18. Rxd2 {[%emt 0:00:14]} Re8 {[%emt 0:01:15]} 19. Kf1 {[%emt 0:04:42]} h5 {[%emt 0:00:56]} 20. Re1 {[%emt 0:02:01]} Rxe1+ {[%emt 0:01:56]} 21. Kxe1 {[%emt 0:00:01]} Rb5 {[%emt 0:02:30]} 22. h4 {[%emt 0:08:07]} Bf6 {[%emt 0:03:25]} 23. g3 {[%emt 0:00:34]} Kg7 {[%emt 0:00:21]} 24. Kd1 {[%emt 0:04:10]} Ra5 {[%emt 0:04:55]} 25. a3 {[%emt 0:02:54]} Rb5 {[%emt 0:06:12]} 26. Be3 {[%emt 0:05:13]} Be5 {[%emt 0:06:45]} 27. f4 {[%emt 0:07:12]} Bc7 {[%emt 0:05:54]} 28. b4 {[%emt 0:11:31]} Kf6 {[%emt 0:01:41]} 29. Rd7 {[%emt 0:00:57]} Rd5+ {[%emt 0:01:54]} 30. Bd4+ 1-0

[Event "21st Sants Open 2019"]
[Site "Cotxeres de Sants"]
[Date "2019.08.24"]
[Round "2.3"]
[White "Yordanov, Lachezar"]
[Black "Santos Latasa, Jaime"]
[Result "1-0"]
[ECO "A58"]
[WhiteElo "2281"]
[BlackElo "2586"]
[Annotator "ChessBase"]
[PlyCount "113"]
[EventDate "2019.08.22"]
[EventType "swiss"]
[EventCountry "ESP"]
[SourceTitle "playchess.com"]
[Source "ChessBase"]
[SourceQuality "1"]
[TimeControl "40/5400+30:1800+30"]

1. d4 {[%emt 0:02:16]} Nf6 {[%emt 0:00:00]} 2. c4 {[%emt 0:00:06]} c5 {[%emt 0:00:00]} 3. d5 {[%emt 0:00:05]} b5 {[%emt 0:00:00]} 4. cxb5 {[%emt 0:00:07]} a6 {[%emt 0:00:00]} 5. bxa6 {[%emt 0:00:09]} g6 {[%emt 0:00:05]} 6. Nc3 {[%emt 0:00:09]} Bg7 {[%emt 0:00:05]} 7. e4 {[%emt 0:00:41]} O-O {[%emt 0:00:07]} 8. Be2 {[%emt 0:00:10]} Bxa6 {[%emt 0:03:33]} 9. e5 {[%emt 0:04:20]} Ne8 {[%emt 0:00:26]} 10. Nf3 {[%emt 0:00:12]} d6 {[%emt 0:00:19]} 11. e6 {[%emt 0:00:50]} fxe6 {[%emt 0:01:06]} 12. dxe6 {[%emt 0:01:46]} Qc8 {[%emt 0:02:31]} 13. O-O {[%emt 0:01:25]} Nc7 {[%emt 0:04:38]} 14. Bxa6 {[%emt 0:02:53]} Rxa6 {[%emt 0:01:21]} 15. Re1 {[%emt 0:01:02]} Nc6 {[%emt 0:00:07]} 16. Nd5 {[%emt 0:00:59]} Nxd5 {[%emt 0:02:30]} 17. Qxd5 {[%emt 0:00:03]} Rb6 {[%emt 0:00:17]} 18. Rb1 {[%emt 0:02:39]} Qa8 {[%emt 0:03:18]} 19. a3 {[%emt 0:03:21]} Qa4 {[%emt 0:02:31]} 20. b3 {[%emt 0:02:36]} Qa8 {[%emt 0:03:28]} 21. h4 {[%emt 0:14:28]} Qb7 {[%emt 0:03:10]} 22. Be3 {[%emt 0:02:44]} Rb5 {[%emt 0:03:17]} 23. Red1 {[%emt 0:15:47]} Rf5 {[%emt 0:07:31]} 24. Qd3 {[%emt 0:06:21]} Ra5 {[%emt 0:05:56]} 25. b4 {[%emt 0:02:07]} cxb4 {[%emt 0:00:36]} 26. axb4 {[%emt 0:00:05]} Rab5 {[%emt 0:00:49]} 27. Qc4 {[%emt 0:01:08]} Rxf3 {[%emt 0:02:00]} 28. gxf3 {[%emt 0:00:15]} Ne5 {[%emt 0:00:04]} 29. Qc2 {[%emt 0:01:07]} Nxf3+ {[%emt 0:01:16]} 30. Kf1 {[%emt 0:00:06]} Nh2+ {[%emt 0:01:38]} 31. Kg1 {[%emt 0:01:01]} Nf3+ {[%emt 0:02:04]} 32. Kf1 {[%emt 0:00:04]} Nxh4 {[%emt 0:02:53]} 33. Rdc1 {[%emt 0:08:33]} Qh1+ {[%emt 0:01:09]} 34. Ke2 {[%emt 0:00:08]} Qf3+ {[%emt 0:00:05]} 35. Kf1 {[%emt 0:00:42]} Qh3+ {[%emt 0:09:27]} 36. Ke2 {[%emt 0:00:07]} Qg4+ {[%emt 0:00:06]} 37. Kf1 {[%emt 0:00:26]} Qg2+ {[%emt 0:02:05]} 38. Ke2 {[%emt 0:00:06]} Nf5 {[%emt 0:04:54]} 39. Qc6 {[%emt 0:09:02]} Ng3+ {[%emt 0:06:01]} 40. Kd3 {[%emt 0:00:00]} Rd5+ {[%emt 0:00:00]} 41. Kc2 {[%emt 0:00:39]} h5 {[%emt 0:02:27]} 42. Kb3 {[%emt 0:02:28]} Nf5 {[%emt 0:03:36]} 43. Qe8+ {[%emt 0:00:47]} Kh7 {[%emt 0:00:13]} 44. Rg1 {[%emt 0:00:17]} Rd3+ {[%emt 0:01:10]} 45. Ka4 {[%emt 0:00:07]} Qf3 {[%emt 0:00:10]} 46. Qxg6+ {[%emt 0:00:28]} Kh8 {[%emt 0:00:05]} 47. Qe8+ {[%emt 0:00:14]} Kh7 {[%emt 0:00:07]} 48. Rbc1 {[%emt 0:00:37]} Qb7 {[%emt 0:01:10]} 49. Qxh5+ {[%emt 0:03:51]} Kg8 {[%emt 0:00:07]} 50. Qf7+ {[%emt 0:02:27]} Kh8 {[%emt 0:00:06]} 51. Qxf5 {[%emt 0:01:06]} Qa8+ {[%emt 0:00:35]} 52. Qa5 {[%emt 0:00:06]} Qe8+ {[%emt 0:00:06]} 53. b5 {[%emt 0:00:05]} Kh7 {[%emt 0:01:30]} 54. Qa6 {[%emt 0:01:39]} Qf8 {[%emt 0:00:12]} 55. Rh1+ {[%emt 0:00:25]} Kg6 {[%emt 0:00:08]} 56. Qc6 {[%emt 0:00:32]} d5 {[%emt 0:00:22]} 57. Rhd1 {[%emt 0:01:37]} 1-0

[Event "21st Sants Open 2019"]
[Site "Cotxeres de Sants"]
[Date "2019.08.24"]
[Round "2.4"]
[White "Alinasab, Mobina"]
[Black "Idani, Pouya"]
[Result "0-1"]
[ECO "B07"]
[WhiteElo "2280"]
[BlackElo "2581"]
[Annotator "ChessBase"]
[PlyCount "86"]
[EventDate "2019.08.22"]
[EventType "swiss"]
[EventCountry "ESP"]
[SourceTitle "playchess.com"]
[Source "ChessBase"]
[SourceQuality "1"]
[TimeControl "40/5400+30:1800+30"]

1. e4 {[%emt 0:00:00]} d6 {[%emt 0:00:00]} 2. d4 {[%emt 0:00:00]} Nf6 {[%emt 0:00:00]} 3. Nc3 {[%emt 0:00:00]} e5 {[%emt 0:00:00]} 4. dxe5 {[%emt 0:07:24]} dxe5 {[%emt 0:00:02]} 5. Qxd8+ {[%emt 0:00:05]} Kxd8 {[%emt 0:00:04]} 6. Bg5 {[%emt 0:07:10]} Be6 {[%emt 0:01:34]} 7. O-O-O+ {[%emt 0:06:47]} Kc8 {[%emt 0:00:05]} 8. Nf3 {[%emt 0:03:44]} Nbd7 {[%emt 0:01:59]} 9. Bh4 {[%emt 0:07:02]} h6 {[%emt 0:05:25]} 10. Bxf6 {[%emt 0:06:04]} gxf6 {[%emt 0:00:46]} 11. Nh4 {[%emt 0:01:22]} c6 {[%emt 0:01:27]} 12. Nf5 {[%emt 0:00:32]} b5 {[%emt 0:01:39]} 13. Kb1 {[%emt 0:06:33]} a5 {[%emt 0:05:35]} 14. h4 {[%emt 0:05:32]} Nc5 {[%emt 0:09:47]} 15. f3 {[%emt 0:00:50]} a4 {[%emt 0:01:36]} 16. a3 {[%emt 0:05:03]} Nd7 {[%emt 0:04:26]} 17. Na2 {[%emt 0:00:52]} Nb6 {[%emt 0:01:06]} 18. c3 {[%emt 0:01:27]} Kc7 {[%emt 0:01:25]} 19. g4 {[%emt 0:01:30]} Bc5 {[%emt 0:12:29]} 20. Nc1 {[%emt 0:02:39]} Bxf5 {[%emt 0:06:48]} 21. exf5 {[%emt 0:02:39]} Nd5 {[%emt 0:00:20]} 22. Bd3 {[%emt 0:07:34]} Ne3 {[%emt 0:02:08]} 23. Rde1 {[%emt 0:01:52]} Rad8 {[%emt 0:03:15]} 24. Rh2 {[%emt 0:01:43]} Rd7 {[%emt 0:02:10]} 25. Rhe2 {[%emt 0:08:11]} Nd5 {[%emt 0:00:16]} 26. Be4 {[%emt 0:00:44]} Nf4 {[%emt 0:01:01]} 27. Rh2 {[%emt 0:00:20]} Rhd8 {[%emt 0:01:21]} 28. Kc2 {[%emt 0:01:14]} Rd6 {[%emt 0:04:51]} 29. h5 {[%emt 0:00:25]} Ba7 {[%emt 0:03:51]} 30. Na2 {[%emt 0:00:34]} Bb6 {[%emt 0:04:24]} 31. Nc1 {[%emt 0:02:05]} R8d7 {[%emt 0:02:55]} 32. Kb1 {[%emt 0:09:21]} Rd2 {[%emt 0:04:08]} 33. Rxd2 {[%emt 0:03:56]} Rxd2 {[%emt 0:00:05]} 34. Bc2 {[%emt 0:00:44]} Rh2 {[%emt 0:04:50]} 35. Nd3 {[%emt 0:00:59]} Nd5 {[%emt 0:04:16]} 36. Nb4 {[%emt 0:00:26]} Ne3 {[%emt 0:00:06]} 37. Be4 {[%emt 0:00:35]} Nc4 {[%emt 0:00:14]} 38. Nd3 {[%emt 0:00:31]} Be3 {[%emt 0:02:18]} 39. Ka1 {[%emt 0:00:27]} Bb6 {[%emt 0:04:23]} 40. Ka2 {[%emt 0:00:00]} Nd2 {[%emt 0:00:00]} 41. f4 {[%emt 0:13:24]} exf4 {[%emt 0:05:54]} 42. Nxf4 {[%emt 0:00:29]} Bf2 {[%emt 0:00:05]} 43. Rh1 {[%emt 0:03:01]} Bg3 {[%emt 0:00:14]} 0-1

[Event "21st Sants Open 2019"]
[Site "Cotxeres de Sants"]
[Date "2019.08.24"]
[Round "2.5"]
[White "Henriquez Villagra, Cristobal"]
[Black "Biastoch, Bennet"]
[Result "1-0"]
[ECO "B23"]
[WhiteElo "2562"]
[BlackElo "2274"]
[Annotator "ChessBase"]
[PlyCount "71"]
[EventDate "2019.08.22"]
[EventType "swiss"]
[EventCountry "ESP"]
[SourceTitle "playchess.com"]
[Source "ChessBase"]
[SourceQuality "1"]
[TimeControl "40/5400+30:1800+30"]

1. e4 c5 2. Nc3 d6 3. d4 cxd4 4. Qxd4 Nc6 5. Qd2 g6 6. b3 Bg7 7. Bb2 Nf6 8. O-O-O Be6 9. f4 Qa5 10. Kb1 O-O-O 11. Nf3 d5 12. e5 Ne4 13. Qe1 f5 14. Bd3 Kb8 15. Nb5 Qxe1 16. Rhxe1 a6 17. Nbd4 Nxd4 18. Bxd4 h6 19. h4 Rhg8 20. Kb2 Bf7 21. a4 e6 22. c4 dxc4 23. bxc4 Be8 24. Kb3 Bc6 25. Bb6 Rde8 26. Nd4 Bf8 27. Nxc6+ bxc6 28. Bxe4 fxe4 29. Rxe4 Be7 30. c5 Bxh4 31. Rb4 Ka8 32. Rd7 Re7 33. Rd8+ Rxd8 34. Bxd8 Rb7 35. Rxb7 Bxd8 36. Rg7 1-0

[Event "21st Sants Open 2019"]
[Site "Cotxeres de Sants"]
[Date "2019.08.24"]
[Round "2.6"]
[White "Iglesias, Joachim"]
[Black "Hillarp Persson, Tiger"]
[Result "0-1"]
[ECO "A04"]
[WhiteElo "2274"]
[BlackElo "2558"]
[Annotator "ChessBase"]
[PlyCount "100"]
[EventDate "2019.08.22"]
[EventType "swiss"]
[EventCountry "ESP"]
[SourceTitle "playchess.com"]
[Source "ChessBase"]
[SourceQuality "1"]
[TimeControl "40/5400+30:1800+30"]

1. Nf3 c5 2. c4 g6 3. e3 Nf6 4. b3 Bg7 5. Bb2 O-O 6. d3 b6 7. Be2 Bb7 8. a3 Nc6 9. O-O d5 10. cxd5 Qxd5 11. Nbd2 Rfd8 12. Qc2 Rab8 13. Rac1 Ba8 14. Rfe1 Ne8 15. b4 cxb4 16. d4 bxa3 17. Bxa3 Nd6 18. e4 Qa5 19. Bxd6 exd6 20. Ra1 Qh5 21. d5 Nb4 22. Qc7 Bxa1 23. Rxa1 a5 24. Nc4 Bxd5 25. exd5 Nxd5 26. Qa7 Nc3 27. Bf1 Qc5 28. Qe7 d5 29. Qxc5 bxc5 30. Nxa5 Ra8 31. Rc1 Rxa5 32. Rxc3 c4 33. Nd4 Ra1 34. f4 Rd1 35. Nf3 Rb8 36. Kf2 Rb2+ 37. Be2 d4 38. Rxc4 d3 39. Re4 Rxe2+ 40. Rxe2 dxe2 41. Kxe2 Ra1 42. g4 f6 43. Kf2 Kf7 44. Kg3 Ra3 45. Kg2 Ke6 46. f5+ gxf5 47. Nd4+ Ke5 48. Nxf5 Kf4 49. h3 Ra2+ 50. Kg1 h5 0-1

[Event "21st Sants Open 2019"]
[Site "Cotxeres de Sants"]
[Date "2019.08.24"]
[Round "2.7"]
[White "Puranik, Abhimanyu"]
[Black "Agdelen, Huseyin Can"]
[Result "1-0"]
[ECO "A20"]
[WhiteElo "2550"]
[BlackElo "2272"]
[Annotator "ChessBase"]
[PlyCount "103"]
[EventDate "2019.08.22"]
[EventType "swiss"]
[EventCountry "ESP"]
[SourceTitle "playchess.com"]
[Source "ChessBase"]
[SourceQuality "1"]
[TimeControl "40/5400+30:1800+30"]

1. c4 {[%emt 0:00:00]} e5 {[%emt 0:01:17]} 2. g3 {[%emt 0:00:00]} Nf6 {[%emt 0:00:35]} 3. Bg2 {[%emt 0:00:05]} d5 {[%emt 0:00:33]} 4. cxd5 {[%emt 0:00:08]} Nxd5 {[%emt 0:00:08]} 5. Nc3 {[%emt 0:00:06]} Nb6 {[%emt 0:00:52]} 6. Nf3 {[%emt 0:00:36]} Nc6 {[%emt 0:00:58]} 7. O-O {[%emt 0:00:15]} Be7 {[%emt 0:01:12]} 8. a3 {[%emt 0:00:09]} a5 {[%emt 0:06:41]} 9. d3 {[%emt 0:00:16]} O-O {[%emt 0:00:46]} 10. Be3 {[%emt 0:00:33]} Re8 {[%emt 0:04:17]} 11. Rc1 {[%emt 0:04:03]} Bf8 {[%emt 0:02:48]} 12. Ne4 {[%emt 0:06:33]} Nd4 {[%emt 0:04:25]} 13. Nxd4 {[%emt 0:15:03]} exd4 {[%emt 0:00:07]} 14. Bg5 {[%emt 0:00:16]} f6 {[%emt 0:08:56]} 15. Bd2 {[%emt 0:01:49]} a4 {[%emt 0:08:55]} 16. f4 {[%emt 0:12:24]} f5 {[%emt 0:14:22]} 17. Nc5 {[%emt 0:03:36]} c6 {[%emt 0:00:52]} 18. Bf3 {[%emt 0:05:22]} Bxc5 {[%emt 0:09:10]} 19. Rxc5 {[%emt 0:00:06]} Be6 {[%emt 0:00:09]} 20. Ba5 {[%emt 0:09:24]} Ra6 {[%emt 0:15:04]} 21. Re1 {[%emt 0:03:54]} Qd6 {[%emt 0:02:03]} 22. Bb4 {[%emt 0:01:30]} Qd7 {[%emt 0:00:26]} 23. Re5 {[%emt 0:05:57]} Bb3 {[%emt 0:03:31]} 24. Qc1 {[%emt 0:01:56]} Rxe5 {[%emt 0:02:53]} 25. fxe5 {[%emt 0:00:04]} Nd5 {[%emt 0:02:47]} 26. Bd6 {[%emt 0:03:35]} b6 {[%emt 0:00:45]} 27. Rf1 {[%emt 0:06:39]} c5 {[%emt 0:05:16]} 28. Bxd5+ {[%emt 0:04:02]} Bxd5 {[%emt 0:00:05]} 29. g4 {[%emt 0:00:10]} Ra8 {[%emt 0:03:04]} 30. gxf5 {[%emt 0:00:09]} Kh8 {[%emt 0:01:06]} 31. Qg5 {[%emt 0:01:05]} h6 {[%emt 0:00:10]} 32. Qg3 {[%emt 0:01:42]} Qf7 {[%emt 0:00:29]} 33. Qh4 {[%emt 0:05:32]} Rg8 {[%emt 0:00:58]} 34. e6 {[%emt 0:02:15]} Qf6 {[%emt 0:00:23]} 35. Qg3 {[%emt 0:01:41]} Kh7 {[%emt 0:00:45]} 36. Be5 {[%emt 0:00:11]} Qg5 {[%emt 0:00:10]} 37. Qxg5 {[%emt 0:02:51]} hxg5 {[%emt 0:00:02]} 38. e7 {[%emt 0:00:10]} Re8 {[%emt 0:00:38]} 39. Bd6 {[%emt 0:00:10]} Kg8 {[%emt 0:00:55]} 40. f6 {[%emt 0:00:00]} g6 {[%emt 0:00:00]} 41. Bc7 {[%emt 0:02:20]} b5 {[%emt 0:01:25]} 42. Bb6 {[%emt 0:00:23]} c4 {[%emt 0:00:36]} 43. Bxd4 {[%emt 0:00:50]} Kf7 {[%emt 0:00:08]} 44. Bc3 {[%emt 0:00:50]} Rh8 {[%emt 0:01:12]} 45. e4 {[%emt 0:01:15]} Bc6 {[%emt 0:00:35]} 46. dxc4 {[%emt 0:00:40]} bxc4 {[%emt 0:00:21]} 47. e5 {[%emt 0:00:33]} Rh4 {[%emt 0:00:57]} 48. Rf2 {[%emt 0:04:16]} Re4 {[%emt 0:01:06]} 49. Rd2 {[%emt 0:00:20]} g4 {[%emt 0:00:36]} 50. Rd8 {[%emt 0:00:23]} Be8 {[%emt 0:00:15]} 51. Kf2 {[%emt 0:00:09]} g5 {[%emt 0:00:20]} 52. Rb8 {[%emt 0:00:06]} 1-0

[Event "21st Sants Open 2019"]
[Site "Cotxeres de Sants"]
[Date "2019.08.24"]
[Round "2.8"]
[White "Hernando Rodrigo, Julio Antonio"]
[Black "Antal, Gergely"]
[Result "0-1"]
[ECO "D85"]
[WhiteElo "2272"]
[BlackElo "2549"]
[Annotator "ChessBase"]
[PlyCount "58"]
[EventDate "2019.08.22"]
[EventType "swiss"]
[EventCountry "ESP"]
[SourceTitle "playchess.com"]
[Source "ChessBase"]
[SourceQuality "1"]
[TimeControl "40/5400+30:1800+30"]

1. d4 {[%emt 0:00:38]} Nf6 {[%emt 0:08:31]} 2. c4 {[%emt 0:00:29]} g6 {[%emt 0:00:05]} 3. Nc3 {[%emt 0:00:10]} d5 {[%emt 0:00:04]} 4. cxd5 {[%emt 0:00:06]} Nxd5 {[%emt 0:00:03]} 5. e4 {[%emt 0:00:06]} Nxc3 {[%emt 0:00:03]} 6. bxc3 {[%emt 0:00:06]} Bg7 {[%emt 0:00:02]} 7. Nf3 {[%emt 0:00:05]} c5 {[%emt 0:00:23]} 8. Rb1 {[%emt 0:00:14]} O-O {[%emt 0:00:46]} 9. Be2 {[%emt 0:00:07]} cxd4 {[%emt 0:00:28]} 10. cxd4 {[%emt 0:00:07]} Qa5+ {[%emt 0:00:04]} 11. Bd2 {[%emt 0:00:05]} Qxa2 {[%emt 0:00:08]} 12. O-O {[%emt 0:00:08]} Bg4 {[%emt 0:00:08]} 13. Be3 {[%emt 0:00:25]} Nc6 {[%emt 0:02:33]} 14. d5 {[%emt 0:02:47]} Na5 {[%emt 0:00:06]} 15. Bg5 {[%emt 0:00:33]} Qa3 {[%emt 0:00:38]} 16. Qd2 {[%emt 0:08:26]} b6 {[%emt 0:07:03]} 17. Qf4 {[%emt 0:12:48]} Bxf3 {[%emt 0:00:27]} 18. gxf3 {[%emt 0:02:01]} Rac8 {[%emt 0:23:33]} 19. Qh4 {[%emt 0:09:15]} Rc7 {[%emt 0:00:31]} 20. Qg3 {[%emt 0:14:23]} Rc2 {[%emt 0:02:50]} 21. Bd1 {[%emt 0:01:48]} Rcc8 {[%emt 0:00:15]} 22. Be2 {[%emt 0:06:46]} h6 {[%emt 0:06:51]} 23. Bf4 {[%emt 0:04:53]} Nb3 {[%emt 0:09:17]} 24. d6 {[%emt 0:04:14]} Nd4 {[%emt 0:00:54]} 25. Bd1 {[%emt 0:00:44]} Rfd8 {[%emt 0:01:19]} 26. dxe7 {[%emt 0:08:02]} Qxe7 {[%emt 0:00:22]} 27. Be3 {[%emt 0:00:22]} Rc3 {[%emt 0:04:38]} 28. Bxd4 {[%emt 0:00:49]} Bxd4 {[%emt 0:00:03]} 29. Rb3 {[%emt 0:04:45]} Rc5 {[%emt 0:01:03]} 0-1

[Event "21st Sants Open 2019"]
[Site "Cotxeres de Sants"]
[Date "2019.08.24"]
[Round "2.9"]
[White "Antova, Gabriela"]
[Black "Cuartas, Jaime Alexander"]
[Result "1-0"]
[ECO "C60"]
[WhiteElo "2270"]
[BlackElo "2530"]
[Annotator "ChessBase"]
[PlyCount "81"]
[EventDate "2019.08.22"]
[EventType "swiss"]
[EventCountry "ESP"]
[SourceTitle "playchess.com"]
[Source "ChessBase"]
[SourceQuality "1"]
[TimeControl "40/5400+30:1800+30"]

1. e4 {[%emt 0:00:00]} e5 {[%emt 0:00:00]} 2. Nf3 {[%emt 0:00:00]} Nc6 {[%emt 0:00:00]} 3. Bb5 {[%emt 0:00:00]} g6 {[%emt 0:00:24]} 4. O-O {[%emt 0:02:09]} Bg7 {[%emt 0:00:17]} 5. c3 {[%emt 0:00:47]} a6 {[%emt 0:00:14]} 6. Ba4 {[%emt 0:00:33]} d6 {[%emt 0:01:13]} 7. d4 {[%emt 0:01:31]} Bd7 {[%emt 0:00:04]} 8. Be3 {[%emt 0:00:49]} Nge7 {[%emt 0:05:45]} 9. Nbd2 {[%emt 0:00:25]} O-O {[%emt 0:00:20]} 10. dxe5 {[%emt 0:04:25]} Nxe5 {[%emt 0:01:06]} 11. Nxe5 {[%emt 0:00:21]} dxe5 {[%emt 0:01:11]} 12. Bb3 {[%emt 0:04:57]} Qc8 {[%emt 0:03:54]} 13. Bc5 {[%emt 0:13:00]} Re8 {[%emt 0:00:15]} 14. Qf3 {[%emt 0:00:22]} Be6 {[%emt 0:00:12]} 15. Nc4 {[%emt 0:00:55]} Kh8 {[%emt 0:07:30]} 16. h3 {[%emt 0:05:51]} Ng8 {[%emt 0:02:24]} 17. Rfd1 {[%emt 0:07:03]} Nf6 {[%emt 0:04:45]} 18. Be3 {[%emt 0:09:55]} b6 {[%emt 0:07:47]} 19. Bg5 {[%emt 0:02:55]} Ng8 {[%emt 0:00:15]} 20. Rd2 {[%emt 0:02:07]} f6 {[%emt 0:03:52]} 21. Be3 {[%emt 0:03:33]} Qb7 {[%emt 0:00:38]} 22. Rad1 {[%emt 0:02:24]} f5 {[%emt 0:09:46]} 23. exf5 {[%emt 0:03:59]} Qxf3 {[%emt 0:00:06]} 24. gxf3 {[%emt 0:00:02]} Bxf5 {[%emt 0:00:07]} 25. f4 {[%emt 0:01:07]} exf4 {[%emt 0:06:40]} 26. Bxf4 {[%emt 0:00:08]} Rac8 {[%emt 0:00:14]} 27. Kh2 {[%emt 0:01:31]} Re4 {[%emt 0:10:37]} 28. Bg3 {[%emt 0:02:04]} h5 {[%emt 0:01:33]} 29. Kg2 {[%emt 0:13:13]} h4 {[%emt 0:10:27]} 30. Bh2 {[%emt 0:00:14]} Bf6 {[%emt 0:00:22]} 31. Ne3 {[%emt 0:03:39]} Bg5 {[%emt 0:00:23]} 32. Nxf5 {[%emt 0:01:15]} Bxd2 {[%emt 0:01:54]} 33. Nxh4 {[%emt 0:00:43]} Bg5 {[%emt 0:03:17]} 34. Nxg6+ {[%emt 0:00:25]} Kg7 {[%emt 0:00:08]} 35. Rd7+ {[%emt 0:02:02]} Ne7 {[%emt 0:00:12]} 36. Bxc7 {[%emt 0:05:41]} Kxg6 {[%emt 0:02:04]} 37. Bc2 {[%emt 0:00:04]} Kf5 {[%emt 0:01:10]} 38. Bg3 {[%emt 0:01:54]} Rc6 {[%emt 0:08:29]} 39. Rd4 {[%emt 0:00:17]} Rce6 {[%emt 0:00:12]} 40. Rxe4 {[%emt 0:00:00]} Rxe4 {[%emt 0:00:00]} 41. Kf3 {[%emt 0:02:39]} 1-0

[Event "21st Sants Open 2019"]
[Site "Cotxeres de Sants"]
[Date "2019.08.24"]
[Round "2.10"]
[White "Gordon, Stephen J"]
[Black "Niermann, Tristan"]
[Result "1-0"]
[ECO "A11"]
[WhiteElo "2520"]
[BlackElo "2266"]
[Annotator "ChessBase"]
[PlyCount "49"]
[EventDate "2019.08.22"]
[EventType "swiss"]
[EventCountry "ESP"]
[SourceTitle "playchess.com"]
[Source "ChessBase"]
[SourceQuality "1"]
[TimeControl "40/5400+30:1800+30"]

1. c4 {[%emt 0:15:12]} c6 {[%emt 0:00:00]} 2. Nf3 {[%emt 0:00:14]} d5 {[%emt 0:00:00]} 3. e3 Nf6 {[%emt 0:00:24]} 4. Nc3 {[%emt 0:00:13]} Bg4 {[%emt 0:03:51]} 5. h3 {[%emt 0:00:28]} Bxf3 {[%emt 0:01:06]} 6. Qxf3 {[%emt 0:00:02]} e5 {[%emt 0:06:05]} 7. d4 {[%emt 0:00:02]} e4 {[%emt 0:01:57]} 8. Qd1 {[%emt 0:00:09]} a6 {[%emt 0:03:07]} 9. g4 {[%emt 0:09:17]} h6 {[%emt 0:05:02]} 10. Bg2 {[%emt 0:00:25]} Bd6 {[%emt 0:02:22]} 11. Qb3 {[%emt 0:02:31]} Ra7 {[%emt 0:06:59]} 12. cxd5 {[%emt 0:07:57]} cxd5 {[%emt 0:01:19]} 13. Bd2 {[%emt 0:00:02]} Bc7 {[%emt 0:04:40]} 14. O-O-O {[%emt 0:12:25]} Ba5 {[%emt 0:11:26]} 15. f3 {[%emt 0:13:54]} exf3 {[%emt 0:02:43]} 16. Bxf3 {[%emt 0:00:02]} Bxc3 {[%emt 0:00:35]} 17. Bxc3 {[%emt 0:05:00]} O-O {[%emt 0:07:43]} 18. h4 {[%emt 0:00:02]} Re8 {[%emt 0:03:07]} 19. g5 {[%emt 0:00:17]} Rxe3 {[%emt 0:06:59]} 20. Rdf1 {[%emt 0:00:57]} hxg5 {[%emt 0:13:34]} 21. hxg5 {[%emt 0:00:17]} Ne4 {[%emt 0:01:13]} 22. Bxe4 {[%emt 0:03:41]} Rxe4 {[%emt 0:00:15]} 23. Rf5 {[%emt 0:03:09]} Nc6 {[%emt 0:05:08]} 24. g6 {[%emt 0:01:12]} b5 {[%emt 0:01:31]} 25. Rfh5 {[%emt 0:01:16]} 1-0

[Event "21st Sants Open 2019"]
[Site "Cotxeres de Sants"]
[Date "2019.08.24"]
[Round "2.11"]
[White "Vittorino, Carlo Giovanni"]
[Black "Krysa, Leandro"]
[Result "0-1"]
[ECO "D02"]
[WhiteElo "2264"]
[BlackElo "2516"]
[Annotator "ChessBase"]
[PlyCount "84"]
[EventDate "2019.08.22"]
[EventType "swiss"]
[EventCountry "ESP"]
[SourceTitle "playchess.com"]
[Source "ChessBase"]
[SourceQuality "1"]
[TimeControl "40/5400+30:1800+30"]

1. Nf3 {[%emt 0:15:33]} d5 {[%emt 0:00:00]} 2. d4 {[%emt 0:00:21]} Nf6 {[%emt 0:00:10]} 3. Bf4 {[%emt 0:02:04]} c5 {[%emt 0:04:30]} 4. e3 {[%emt 0:00:06]} Nc6 {[%emt 0:01:25]} 5. c3 {[%emt 0:00:11]} Qb6 {[%emt 0:01:36]} 6. Qb3 {[%emt 0:00:08]} c4 {[%emt 0:00:07]} 7. Qc2 {[%emt 0:01:09]} Bf5 {[%emt 0:05:04]} 8. Qc1 {[%emt 0:00:55]} e6 {[%emt 0:00:23]} 9. h3 {[%emt 0:00:32]} h6 {[%emt 0:00:47]} 10. Nbd2 {[%emt 0:04:49]} Qd8 {[%emt 0:00:16]} 11. Be2 {[%emt 0:01:01]} Be7 {[%emt 0:00:17]} 12. Bd1 {[%emt 0:08:23]} O-O {[%emt 0:01:35]} 13. Bc2 {[%emt 0:00:09]} b5 {[%emt 0:05:57]} 14. O-O {[%emt 0:12:53]} b4 {[%emt 0:25:15]} 15. Bxf5 {[%emt 0:10:23]} exf5 {[%emt 0:00:08]} 16. b3 {[%emt 0:01:27]} Rc8 {[%emt 0:04:34]} 17. bxc4 {[%emt 0:04:04]} dxc4 {[%emt 0:01:35]} 18. Nxc4 {[%emt 0:06:16]} Ne4 {[%emt 0:12:39]} 19. cxb4 {[%emt 0:12:52]} Nxb4 {[%emt 0:00:27]} 20. a3 {[%emt 0:00:08]} Nd5 {[%emt 0:07:23]} 21. Nfe5 {[%emt 0:05:26]} Nb6 {[%emt 0:04:58]} 22. Ra2 {[%emt 0:00:07]} f6 {[%emt 0:00:37]} 23. Rc2 {[%emt 0:00:13]} fxe5 {[%emt 0:01:03]} 24. Nxe5 {[%emt 0:00:45]} Nd5 {[%emt 0:04:56]} 25. Nc6 {[%emt 0:04:19]} Qd7 {[%emt 0:01:43]} 26. Nxe7+ {[%emt 0:00:10]} Nxe7 {[%emt 0:00:09]} 27. Rxc8 {[%emt 0:01:08]} Rxc8 {[%emt 0:00:13]} 28. Qb2 {[%emt 0:00:02]} Nd5 {[%emt 0:05:10]} 29. Be5 {[%emt 0:00:05]} Nb6 {[%emt 0:00:31]} 30. Rb1 {[%emt 0:03:24]} Nc3 {[%emt 0:04:09]} 31. Qb3+ {[%emt 0:00:16]} Qf7 {[%emt 0:00:48]} 32. Rb2 {[%emt 0:00:15]} Qxb3 {[%emt 0:02:05]} 33. Rxb3 {[%emt 0:00:01]} Kf7 {[%emt 0:00:43]} 34. g4 {[%emt 0:00:21]} g6 {[%emt 0:00:16]} 35. Kg2 {[%emt 0:00:08]} Ke6 {[%emt 0:00:29]} 36. Bg7 {[%emt 0:00:50]} h5 {[%emt 0:01:15]} 37. gxh5 {[%emt 0:04:28]} gxh5 {[%emt 0:00:07]} 38. Kf3 {[%emt 0:00:24]} Ne4 {[%emt 0:01:25]} 39. Rb5 {[%emt 0:00:34]} Nd5 {[%emt 0:00:35]} 40. Be5 {[%emt 0:00:00]} Rc2 {[%emt 0:00:00]} 41. Bg3 {[%emt 0:01:48]} Ng5+ {[%emt 0:02:45]} 42. Kg2 {[%emt 0:00:03]} Nxe3+ {[%emt 0:00:06]} 0-1